fUSD/lending_fUSD_20260616
["ID","MTS","AMOUNT","RATE_DAILY","PERIOD"]
[425193047,1781565093000,-1876.948148,0.00032877,7]
[425193068,1781565093000,-159.395988,0.00032877,7]
[425193033,1781565093000,-1541.461587,0.00032877,7]
[425193034,1781565093000,-2009.398302,0.00032877,7]
[425193035,1781565093000,-3069.267381,0.00032877,7]
[425193037,1781565093000,-3069.267381,0.00032877,7]
[425193036,1781565093000,-2009.398302,0.00032877,7]
[425193040,1781565093000,-1541.461587,0.00032877,7]
[425193039,1781565093000,-1541.461587,0.00032877,7]
[425193042,1781565093000,-3069.267381,0.00032877,7]
[425193041,1781565093000,-3069.267381,0.00032877,7]
[425193043,1781565093000,-3069.267381,0.00032877,7]
[425193044,1781565093000,-1541.461587,0.00032877,7]
[425193046,1781565093000,-1876.948148,0.00032877,7]
[425193048,1781565093000,-1541.461587,0.00032877,7]
[425193045,1781565093000,-1541.461587,0.00032877,7]
[425193050,1781565093000,-1876.948148,0.00032877,7]
[425193067,1781565093000,-680.37601,0.00032877,7]
[425193061,1781565093000,-3069.267381,0.00032877,7]
[425193072,1781565093000,-1876.948148,0.00032877,7]
[425193090,1781565093000,-3169.1363252,0.00032877,2]
[425193092,1781565093000,-151.0,0.00032877,7]
[425193094,1781565093000,-151.0,0.00032877,7]
[425193091,1781565093000,-309.748496,0.00032877,120]
[425193093,1781565093000,-151.0,0.00032877,7]
[425193096,1781565093000,-260.555296,0.00032877,7]
[425193095,1781565093000,-151.0,0.00032877,7]
[425193086,1781565093000,-500.0,0.00032877,2]
[425193098,1781565093000,-252.889171,0.00032877,7]
[425193100,1781565093000,-260.555296,0.00032877,7]
[425193101,1781565093000,-252.404705,0.00032877,7]
[425193102,1781565093000,-260.555296,0.00032877,7]
[425193104,1781565093000,-252.404705,0.00032877,7]
[425193105,1781565093000,-227.383716,0.00032877,7]
[425193069,1781565093000,-1876.948148,0.00032877,7]
[425193103,1781565093000,-695.673226,0.00032877,7]
[425193099,1781565093000,-252.404705,0.00032877,7]
[425193089,1781565093000,-432.59744951,0.00032877,2]
[425193097,1781565093000,-260.555296,0.00032877,7]
[425193087,1781565093000,-500.0,0.00032877,2]
[425193071,1781565093000,-461.059022,0.00032877,7]
[425193088,1781565093000,-500.0,0.00032877,2]
[425193074,1781565093000,-461.059022,0.00032877,7]
[425193070,1781565093000,-159.395988,0.00032877,7]
[425193075,1781565093000,-367.318954,0.00032877,7]
[425193077,1781565093000,-1876.948148,0.00032877,7]
[425193078,1781565093000,-367.318954,0.00032877,7]
[425193073,1781565093000,-159.395988,0.00032877,7]
[425193080,1781565093000,-461.059022,0.00032877,7]
[425193081,1781565093000,-151.0,0.00032877,7]
[425193079,1781565093000,-680.37601,0.00032877,7]
[425193084,1781565093000,-500.0,0.00032877,2]
[425193082,1781565093000,-1700.0,0.00032877,120]
[425193083,1781565093000,-500.0,0.00032877,2]
[425193076,1781565093000,-680.37601,0.00032877,7]
[425193085,1781565093000,-500.0,0.00032877,2]
[425193139,1781565094000,-479.06887,0.00032877,7]
[425193140,1781565094000,-159.160419,0.00032877,7]
[425193138,1781565094000,-245.696328,0.00032877,7]
[425193130,1781565094000,-188.026339,0.00032877,7]
[425193135,1781565094000,-159.160419,0.00032877,7]
[425193129,1781565094000,-500.0,0.00032877,7]
[425193141,1781565094000,-779.453646,0.00032877,7]
[425193131,1781565094000,-500.0,0.00032877,7]
[425193136,1781565094000,-479.06887,0.00032877,7]
[425193146,1781565094000,-245.696328,0.00032877,7]
[425193147,1781565094000,-317.524127,0.00032877,7]
[425193145,1781565094000,-779.453646,0.00032877,7]
[425193137,1781565094000,-779.453646,0.00032877,7]
[425193142,1781565094000,-245.696328,0.00032877,7]
[425193144,1781565094000,-159.160419,0.00032877,7]
[425193148,1781565094000,-317.524127,0.00032877,7]
[425193153,1781565094000,-400.0,0.00032877,7]
[425193154,1781565094000,-473.173295,0.00032877,7]
[425193152,1781565094000,-317.524127,0.00032877,7]
[425193156,1781565094000,-400.0,0.00032877,7]
[425193149,1781565094000,-245.696328,0.00032877,7]
[425193133,1781565094000,-479.06887,0.00032877,7]
[425193143,1781565094000,-479.06887,0.00032877,7]
[425193134,1781565094000,-779.453646,0.00032877,7]
[425193113,1781565094000,-252.889171,0.00032877,7]
[425193126,1781565094000,-500.0,0.00032877,7]
[425193155,1781565094000,-151.0,0.00032877,7]
[425193107,1781565094000,-252.889171,0.00032877,7]
[425193106,1781565094000,-695.673226,0.00032877,7]
[425193108,1781565094000,-252.404705,0.00032877,7]
[425193114,1781565094000,-695.673226,0.00032877,7]
[425193110,1781565094000,-252.889171,0.00032877,7]
[425193111,1781565094000,-695.673226,0.00032877,7]
[425193109,1781565094000,-227.383716,0.00032877,7]
[425193115,1781565094000,-227.383716,0.00032877,7]
[425193112,1781565094000,-227.383716,0.00032877,7]
[425193132,1781565094000,-159.160419,0.00032877,7]
[425193116,1781565094000,-388.279415,0.00032877,7]
[425193125,1781565094000,-388.279415,0.00032877,7]
[425193119,1781565094000,-158.99211,0.00032877,7]
[425193123,1781565094000,-158.99211,0.00032877,7]
[425193121,1781565094000,-388.279415,0.00032877,7]
[425193118,1781565094000,-388.279415,0.00032877,7]
[425193124,1781565094000,-188.026339,0.00032877,7]
[425193117,1781565094000,-158.99211,0.00032877,7]
[425193120,1781565094000,-188.026339,0.00032877,7]
[425193127,1781565094000,-158.99211,0.00032877,7]
[425193128,1781565094000,-188.026339,0.00032877,7]
[425193122,1781565094000,-500.0,0.00032877,7]
[425193151,1781565094000,-233.314749,0.00032877,7]
[425193185,1781565094000,-151.0,0.00032877,7]
[425193166,1781565094000,-184.217924,0.00032877,7]
[425193184,1781565094000,-151.0,0.00032877,7]
[425193186,1781565094000,-2582.204745,0.00032877,7]
[425193188,1781565094000,-2582.204745,0.00032877,7]
[425193187,1781565094000,-2582.204745,0.00032877,7]
[425193190,1781565094000,-2582.204745,0.00032877,7]
[425193191,1781565094000,-1644.33858,0.00032877,7]
[425193189,1781565094000,-1644.33858,0.00032877,7]
[425193192,1781565094000,-342.037098,0.00032877,7]
[425193193,1781565094000,-599.62417,0.00032877,7]
[425193196,1781565094000,-599.62417,0.00032877,7]
[425193183,1781565094000,-1042.116434,0.00032877,7]
[425193195,1781565094000,-342.037098,0.00032877,7]
[425193197,1781565094000,-1644.33857,0.00032877,7]
[425193200,1781565094000,-390.399329,0.00032877,7]
[425193199,1781565094000,-342.037098,0.00032877,7]
[425193201,1781565094000,-599.62417,0.00032877,7]
[425193202,1781565094000,-233.383894,0.00032877,7]
[425193203,1781565094000,-420.0,0.00032877,7]
[425193206,1781565094000,-599.624162,0.00032877,7]
[425193205,1781565094000,-390.399329,0.00032877,7]
[425193204,1781565094000,-342.037098,0.00032877,7]
[425193150,1781565094000,-317.524127,0.00032877,7]
[425193198,1781565094000,-420.0,0.00032877,7]
[425193182,1781565094000,-1042.116434,0.00032877,7]
[425193194,1781565094000,-1644.33858,0.00032877,7]
[425193180,1781565094000,-1042.116434,0.00032877,7]
[425193158,1781565094000,-151.0,0.00032877,7]
[425193181,1781565094000,-1042.116434,0.00032877,7]
[425193157,1781565094000,-473.173295,0.00032877,7]
[425193159,1781565094000,-400.0,0.00032877,7]
[425193160,1781565094000,-285.366772,0.00032877,7]
[425193162,1781565094000,-151.0,0.00032877,7]
[425193165,1781565094000,-473.173295,0.00032877,7]
[425193161,1781565094000,-473.173295,0.00032877,7]
[425193164,1781565094000,-285.366772,0.00032877,7]
[425193175,1781565094000,-1329.178591,0.00032877,7]
[425193170,1781565094000,-285.366772,0.00032877,7]
[425193163,1781565094000,-400.0,0.00032877,7]
[425193177,1781565094000,-177.647433,0.00032877,7]
[425193168,1781565094000,-151.0,0.00032877,7]
[425193171,1781565094000,-177.647433,0.00032877,7]
[425193172,1781565094000,-1329.178591,0.00032877,7]
[425193167,1781565094000,-285.366772,0.00032877,7]
[425193178,1781565094000,-1329.178591,0.00032877,7]
[425193173,1781565094000,-151.0,0.00032877,7]
[425193174,1781565094000,-177.647433,0.00032877,7]
[425193176,1781565094000,-151.0,0.00032877,7]
[425193169,1781565094000,-1329.178591,0.00032877,7]
[425193179,1781565094000,-177.647433,0.00032877,7]
[425193246,1781565095000,-374.906561,0.00032877,7]
[425193237,1781565095000,-151.0,0.00032877,7]
[425193243,1781565095000,-151.0,0.00032877,7]
[425193244,1781565095000,-151.0,0.00032877,7]
[425193238,1781565095000,-287.287558,0.00032877,7]
[425193233,1781565095000,-151.0,0.00032877,7]
[425193241,1781565095000,-151.0,0.00032877,7]
[425193240,1781565095000,-583.277327,0.00032877,7]
[425193239,1781565095000,-583.277332,0.00032877,7]
[425193245,1781565095000,-208.148969,0.00032877,7]
[425193242,1781565095000,-151.0,0.00032877,7]
[425193248,1781565095000,-374.906561,0.00032877,7]
[425193259,1781565095000,-151.0,0.00032877,7]
[425193252,1781565095000,-159.069622,0.00032877,7]
[425193247,1781565095000,-374.906561,0.00032877,7]
[425193254,1781565095000,-159.069622,0.00032877,7]
[425193250,1781565095000,-159.069622,0.00032877,7]
[425193251,1781565095000,-151.0,0.00032877,7]
[425193249,1781565095000,-374.906557,0.00032877,7]
[425193255,1781565095000,-159.069631,0.00032877,7]
[425193262,1781565095000,-2975.910345,0.00032877,7]
[425193263,1781565095000,-2975.91033835,0.00032877,7]
[425193256,1781565095000,-151.0,0.00032877,7]
[425193235,1781565095000,-287.287551,0.00032877,7]
[425193253,1781565095000,-151.0,0.00032877,7]
[425193234,1781565095000,-183.996516,0.00032877,7]
[425193209,1781565095000,-420.0,0.00032877,7]
[425193230,1781565095000,-287.287551,0.00032877,7]
[425193257,1781565095000,-151.0,0.00032877,7]
[425193208,1781565095000,-923.421074,0.00032877,7]
[425193207,1781565095000,-233.383894,0.00032877,7]
[425193212,1781565095000,-233.383894,0.00032877,7]
[425193210,1781565095000,-151.0,0.00032877,7]
[425193215,1781565095000,-151.0,0.00032877,7]
[425193216,1781565095000,-333.244591,0.00032877,7]
[425193214,1781565095000,-923.421074,0.00032877,7]
[425193211,1781565095000,-390.399329,0.00032877,7]
[425193217,1781565095000,-233.383884,0.00032877,7]
[425193218,1781565095000,-923.421074,0.00032877,7]
[425193236,1781565095000,-583.277332,0.00032877,7]
[425193219,1781565095000,-390.399331,0.00032877,7]
[425193222,1781565095000,-923.421082,0.00032877,7]
[425193232,1781565095000,-583.277332,0.00032877,7]
[425193221,1781565095000,-333.244591,0.00032877,7]
[425193224,1781565095000,-366.043143,0.00032877,7]
[425193225,1781565095000,-366.043143,0.00032877,7]
[425193223,1781565095000,-333.244593,0.00032877,7]
[425193226,1781565095000,-366.043143,0.00032877,7]
[425193231,1781565095000,-151.0,0.00032877,7]
[425193227,1781565095000,-366.043144,0.00032877,7]
[425193229,1781565095000,-151.0,0.00032877,7]
[425193228,1781565095000,-287.287551,0.00032877,7]
[425193220,1781565095000,-333.244591,0.00032877,7]
[425193261,1781565095000,-151.0,0.00032877,7]
[425193213,1781565095000,-420.0,0.00032877,7]
[425193260,1781565095000,-2975.910345,0.00032877,7]
[425193293,1781565095000,-201.788527,0.00032877,7]
[425193298,1781565095000,-151.0,0.00032877,7]
[425193292,1781565095000,-151.0,0.00032877,7]
[425193294,1781565095000,-151.0,0.00032877,7]
[425193295,1781565095000,-201.788527,0.00032877,7]
[425193291,1781565095000,-201.788527,0.00032877,7]
[425193299,1781565095000,-1603.746376,0.00032877,7]
[425193306,1781565095000,-390.660468,0.00032877,7]
[425193307,1781565095000,-151.0,0.00032877,7]
[425193301,1781565095000,-390.660468,0.00032877,7]
[425193300,1781565095000,-1603.746376,0.00032877,7]
[425193310,1781565095000,-151.0,0.00032877,7]
[425193302,1781565095000,-1603.746376,0.00032877,7]
[425193309,1781565095000,-151.0,0.00032877,7]
[425193303,1781565095000,-390.660468,0.00032877,7]
[425193315,1781565095000,-767.259344,0.00032877,7]
[425193304,1781565095000,-1603.746376,0.00032877,7]
[425193305,1781565095000,-390.660468,0.00032877,7]
[425193313,1781565095000,-196.142936,0.00032877,7]
[425193317,1781565095000,-767.259344,0.00032877,7]
[425193312,1781565095000,-196.142936,0.00032877,7]
[425193311,1781565095000,-196.142936,0.00032877,7]
[425193316,1781565095000,-767.259344,0.00032877,7]
[425193314,1781565095000,-196.142936,0.00032877,7]
[425193264,1781565095000,-2261.533241,0.00032877,7]
[425193297,1781565095000,-151.0,0.00032877,7]
[425193290,1781565095000,-343.302789,0.00032877,7]
[425193308,1781565095000,-288.51767,0.00032877,7]
[425193288,1781565095000,-343.302789,0.00032877,7]
[425193296,1781565095000,-201.788527,0.00032877,7]
[425193265,1781565095000,-616.662037,0.00032877,7]
[425193258,1781565095000,-2975.910345,0.00032877,7]
[425193268,1781565095000,-456.118833,0.00032877,7]
[425193267,1781565095000,-616.662037,0.00032877,7]
[425193269,1781565095000,-204.013439,0.00032877,7]
[425193270,1781565095000,-2261.533241,0.00032877,7]
[425193271,1781565095000,-616.662037,0.00032877,7]
[425193274,1781565095000,-616.662031,0.00032877,7]
[425193272,1781565095000,-456.118833,0.00032877,7]
[425193275,1781565095000,-456.118833,0.00032877,7]
[425193276,1781565095000,-752.085777,0.00032877,7]
[425193273,1781565095000,-2261.533244,0.00032877,7]
[425193266,1781565095000,-2261.533241,0.00032877,7]
[425193285,1781565095000,-752.717403,0.00032877,7]
[425193279,1781565095000,-151.0,0.00032877,7]
[425193282,1781565095000,-151.0,0.00032877,7]
[425193287,1781565095000,-752.717403,0.00032877,7]
[425193286,1781565095000,-343.302789,0.00032877,7]
[425193281,1781565095000,-752.085777,0.00032877,7]
[425193280,1781565095000,-752.717403,0.00032877,7]
[425193283,1781565095000,-343.302789,0.00032877,7]
[425193277,1781565095000,-456.118833,0.00032877,7]
[425193284,1781565095000,-752.085777,0.00032877,7]
[425193278,1781565095000,-752.085777,0.00032877,7]
[425193289,1781565095000,-752.717403,0.00032877,7]
[425193351,1781565096000,-906.884951,0.00032877,7]
[425193345,1781565096000,-906.884951,0.00032877,7]
[425193359,1781565096000,-1355.376054,0.00032877,7]
[425193352,1781565096000,-621.265034,0.00032877,7]
[425193354,1781565096000,-3488.643183,0.00032877,7]
[425193348,1781565096000,-238.725056,0.00032877,7]
[425193358,1781565096000,-621.265034,0.00032877,7]
[425193353,1781565096000,-1355.376054,0.00032877,7]
[425193355,1781565096000,-2323.062041,0.00032877,7]
[425193350,1781565096000,-245.17749,0.00032877,7]
[425193356,1781565096000,-906.884946,0.00032877,7]
[425193349,1781565096000,-2323.062039,0.00032877,7]
[425193357,1781565096000,-245.17749,0.00032877,7]
[425193371,1781565096000,-500.0,0.00032877,7]
[425193369,1781565096000,-151.0,0.00032877,7]
[425193370,1781565096000,-500.0,0.00032877,7]
[425193362,1781565096000,-621.265034,0.00032877,7]
[425193360,1781565096000,-3488.643182,0.00032877,7]
[425193364,1781565096000,-500.0,0.00032877,7]
[425193363,1781565096000,-1355.376053,0.00032877,7]
[425193367,1781565096000,-500.0,0.00032877,7]
[425193366,1781565096000,-151.0,0.00032877,7]
[425193368,1781565096000,-151.0,0.00032877,7]
[425193365,1781565096000,-621.265036,0.00032877,7]
[425193372,1781565096000,-261.504085,0.00032877,7]
[425193361,1781565096000,-245.177491,0.00032877,7]
[425193342,1781565096000,-2323.062039,0.00032877,7]
[425193322,1781565096000,-859.284308,0.00032877,7]
[425193341,1781565096000,-3488.643183,0.00032877,7]
[425193380,1781565096000,-187.506058,0.00032877,7]
[425193319,1781565096000,-767.259353,0.00032877,7]
[425193320,1781565096000,-859.284308,0.00032877,7]
[425193318,1781565096000,-246.405469,0.00032877,7]
[425193321,1781565096000,-1884.01385,0.00032877,7]
[425193323,1781565096000,-859.284308,0.00032877,7]
[425193327,1781565096000,-1884.013857,0.00032877,7]
[425193326,1781565096000,-1884.01385,0.00032877,7]
[425193328,1781565096000,-151.0,0.00032877,7]
[425193325,1781565096000,-859.284317,0.00032877,7]
[425193330,1781565096000,-151.0,0.00032877,7]
[425193333,1781565096000,-382.272043,0.00032877,7]
[425193344,1781565096000,-245.17749,0.00032877,7]
[425193329,1781565096000,-151.0,0.00032877,7]
[425193332,1781565096000,-151.0,0.00032877,7]
[425193324,1781565096000,-1884.01385,0.00032877,7]
[425193334,1781565096000,-382.272043,0.00032877,7]
[425193346,1781565096000,-1355.376054,0.00032877,7]
[425193347,1781565096000,-3488.643183,0.00032877,7]
[425193335,1781565096000,-382.272047,0.00032877,7]
[425193336,1781565096000,-151.0,0.00032877,7]
[425193337,1781565096000,-238.725062,0.00032877,7]
[425193339,1781565096000,-238.725062,0.00032877,7]
[425193338,1781565096000,-2323.062039,0.00032877,7]
[425193340,1781565096000,-906.884951,0.00032877,7]
[425193343,1781565096000,-238.725062,0.00032877,7]
[425193331,1781565096000,-382.272043,0.00032877,7]
[425193376,1781565096000,-261.504094,0.00032877,7]
[425193392,1781565096000,-400.0,0.00032877,7]
[425193382,1781565096000,-489.534508,0.00032877,7]
[425193407,1781565096000,-277.88569,0.00032877,7]
[425193415,1781565096000,-151.0,0.00032877,7]
[425193409,1781565096000,-451.25,0.00032877,7]
[425193408,1781565096000,-558.906642,0.00032877,7]
[425193410,1781565096000,-1621.438202,0.00032877,7]
[425193413,1781565096000,-451.25,0.00032877,7]
[425193414,1781565096000,-369.274713,0.00032877,7]
[425193373,1781565096000,-261.504085,0.00032877,7]
[425193411,1781565096000,-277.88569,0.00032877,7]
[425193427,1781565096000,-269.999797,0.00032877,7]
[425193424,1781565096000,-262.946083,0.00032877,7]
[425193423,1781565096000,-451.25,0.00032877,7]
[425193416,1781565096000,-301.713568,0.00032877,7]
[425193420,1781565096000,-369.274713,0.00032877,7]
[425193421,1781565096000,-151.0,0.00032877,7]
[425193417,1781565096000,-262.946083,0.00032877,7]
[425193426,1781565096000,-369.274713,0.00032877,7]
[425193419,1781565096000,-558.906642,0.00032877,7]
[425193425,1781565096000,-699.892915,0.00032877,7]
[425193422,1781565096000,-301.713568,0.00032877,7]
[425193429,1781565096000,-301.713568,0.00032877,7]
[425193428,1781565096000,-151.0,0.00032877,7]
[425193430,1781565096000,-262.946083,0.00032877,7]
[425193431,1781565096000,-369.274713,0.00032877,7]
[425193432,1781565096000,-699.892915,0.00032877,7]
[425193433,1781565096000,-269.999797,0.00032877,7]
[425193418,1781565096000,-699.892915,0.00032877,7]
[425193406,1781565096000,-1621.438202,0.00032877,7]
[425193412,1781565096000,-558.906642,0.00032877,7]
[425193404,1781565096000,-451.25,0.00032877,7]
[425193381,1781565096000,-3101.633817,0.00032877,7]
[425193377,1781565096000,-489.534509,0.00032877,7]
[425193374,1781565096000,-261.504085,0.00032877,7]
[425193395,1781565096000,-169.89564,0.00032877,7]
[425193379,1781565096000,-489.534509,0.00032877,7]
[425193378,1781565096000,-3101.633817,0.00032877,7]
[425193384,1781565096000,-1080.188342,0.00032877,7]
[425193385,1781565096000,-3101.633817,0.00032877,7]
[425193386,1781565096000,-187.506058,0.00032877,7]
[425193387,1781565096000,-1080.188342,0.00032877,7]
[425193383,1781565096000,-187.506058,0.00032877,7]
[425193393,1781565096000,-1080.188342,0.00032877,7]
[425193388,1781565096000,-3101.633819,0.00032877,7]
[425193375,1781565096000,-489.534509,0.00032877,7]
[425193389,1781565096000,-400.0,0.00032877,7]
[425193390,1781565096000,-187.506052,0.00032877,7]
[425193405,1781565096000,-558.906642,0.00032877,7]
[425193403,1781565096000,-169.89564,0.00032877,7]
[425193401,1781565096000,-1621.438202,0.00032877,7]
[425193397,1781565096000,-169.89564,0.00032877,7]
[425193399,1781565096000,-277.88569,0.00032877,7]
[425193402,1781565096000,-277.88569,0.00032877,7]
[425193396,1781565096000,-400.0,0.00032877,7]
[425193398,1781565096000,-1621.438202,0.00032877,7]
[425193394,1781565096000,-400.0,0.00032877,7]
[425193391,1781565096000,-1080.188342,0.00032877,7]
[425193400,1781565096000,-169.89564,0.00032877,7]
[425193445,1781565097000,-208.362224,0.00032877,7]
[425193449,1781565097000,-208.362224,0.00032877,7]
[425193453,1781565097000,-151.0,0.00032877,7]
[425193450,1781565097000,-698.492968,0.00032877,7]
[425193452,1781565097000,-1921.361855,0.00032877,7]
[425193451,1781565097000,-151.0,0.00032877,7]
[425193447,1781565097000,-1921.361855,0.00032877,7]
[425193448,1781565097000,-1707.915918,0.00032877,7]
[425193446,1781565097000,-698.492968,0.00032877,7]
[425193444,1781565097000,-1707.915918,0.00032877,7]
[425193439,1781565097000,-269.999797,0.00032877,7]
[425193442,1781565097000,-698.492968,0.00032877,7]
[425193443,1781565097000,-269.999797,0.00032877,7]
[425193438,1781565097000,-699.892915,0.00032877,7]
[425193440,1781565097000,-1707.915918,0.00032877,7]
[425193435,1781565097000,-208.362224,0.00032877,7]
[425193437,1781565097000,-262.946083,0.00032877,7]
[425193434,1781565097000,-288.397391,0.00032877,7]
[425193436,1781565097000,-301.713568,0.00032877,7]
[425193454,1781565097000,-1707.915918,0.00032877,7]
[425193441,1781565097000,-208.362224,0.00032877,7]
[425193455,1781565097000,-1921.361855,0.00032877,7]
[425193461,1781565097000,-1115.784687,0.00032877,7]
[425193464,1781565097000,-151.0,0.00032877,7]
[425193456,1781565097000,-151.0,0.00032877,7]
[425193477,1781565097000,-3024.430458,0.00032877,7]
[425193479,1781565097000,-580.474716,0.00032877,7]
[425193476,1781565097000,-269.982709,0.00032877,7]
[425193475,1781565097000,-496.991102,0.00032877,7]
[425193474,1781565097000,-409.344022,0.00032877,7]
[425193468,1781565097000,-151.0,0.00032877,7]
[425193469,1781565097000,-409.344022,0.00032877,7]
[425193472,1781565097000,-580.474716,0.00032877,7]
[425193465,1781565097000,-496.991102,0.00032877,7]
[425193473,1781565097000,-222.888937,0.00032877,7]
[425193471,1781565097000,-151.0,0.00032877,7]
[425193470,1781565097000,-496.991102,0.00032877,7]
[425193466,1781565097000,-222.888937,0.00032877,7]
[425193462,1781565097000,-1115.784687,0.00032877,7]
[425193458,1781565097000,-1921.361855,0.00032877,7]
[425193463,1781565097000,-1115.784687,0.00032877,7]
[425193457,1781565097000,-698.492968,0.00032877,7]
[425193478,1781565097000,-222.888937,0.00032877,7]
[425193459,1781565097000,-232.414142,0.00032877,7]
[425193467,1781565097000,-580.474716,0.00032877,7]
[425193460,1781565097000,-1115.784687,0.00032877,7]
[425193513,1781565098000,-268.300651,0.00032877,7]
[425193518,1781565098000,-265.832878,0.00032877,7]
[425193514,1781565098000,-169.310445,0.00032877,7]
[425193517,1781565098000,-151.0,0.00032877,7]
[425193506,1781565098000,-268.300651,0.00032877,7]
[425193519,1781565098000,-1178.385442,0.00032877,7]
[425193510,1781565098000,-1178.385442,0.00032877,7]
[425193509,1781565098000,-265.832878,0.00032877,7]
[425193515,1781565098000,-283.517619,0.00032877,7]
[425193516,1781565098000,-4448.31643,0.00032877,7]
[425193511,1781565098000,-1528.860771,0.00032877,7]
[425193530,1781565098000,-151.0,0.00032877,7]
[425193520,1781565098000,-267.952222,0.00032877,7]
[425193523,1781565098000,-268.300651,0.00032877,7]
[425193527,1781565098000,-265.832878,0.00032877,7]
[425193525,1781565098000,-283.517619,0.00032877,7]
[425193522,1781565098000,-1528.860771,0.00032877,7]
[425193524,1781565098000,-169.310445,0.00032877,7]
[425193528,1781565098000,-4448.31643,0.00032877,7]
[425193529,1781565098000,-267.952222,0.00032877,7]
[425193526,1781565098000,-151.0,0.00032877,7]
[425193503,1781565098000,-283.517619,0.00032877,7]
[425193531,1781565098000,-2013.338534,0.00032877,7]
[425193521,1781565098000,-2013.338534,0.00032877,7]
[425193507,1781565098000,-4448.31643,0.00032877,7]
[425193495,1781565098000,-1040.006305,0.00032877,7]
[425193504,1781565098000,-1528.860771,0.00032877,7]
[425193483,1781565098000,-3024.430458,0.00032877,7]
[425193484,1781565098000,-222.888937,0.00032877,7]
[425193480,1781565098000,-496.991102,0.00032877,7]
[425193482,1781565098000,-269.982709,0.00032877,7]
[425193485,1781565098000,-580.474716,0.00032877,7]
[425193481,1781565098000,-409.344022,0.00032877,7]
[425193487,1781565098000,-269.982709,0.00032877,7]
[425193489,1781565098000,-3024.430458,0.00032877,7]
[425193497,1781565098000,-294.481292,0.00032877,7]
[425193490,1781565098000,-269.982709,0.00032877,7]
[425193486,1781565098000,-409.344022,0.00032877,7]
[425193508,1781565098000,-1040.006305,0.00032877,7]
[425193488,1781565098000,-294.481292,0.00032877,7]
[425193494,1781565098000,-151.0,0.00032877,7]
[425193496,1781565098000,-1178.385442,0.00032877,7]
[425193541,1781565098000,-641.360278,0.00032877,7]
[425193491,1781565098000,-1040.006305,0.00032877,7]
[425193492,1781565098000,-294.481292,0.00032877,7]
[425193499,1781565098000,-283.517619,0.00032877,7]
[425193498,1781565098000,-268.300651,0.00032877,7]
[425193500,1781565098000,-1040.006305,0.00032877,7]
[425193501,1781565098000,-1178.385442,0.00032877,7]
[425193502,1781565098000,-294.481292,0.00032877,7]
[425193505,1781565098000,-169.310445,0.00032877,7]
[425193493,1781565098000,-3024.430458,0.00032877,7]
[425193536,1781565098000,-4448.31643,0.00032877,7]
[425193512,1781565098000,-151.0,0.00032877,7]
[425193539,1781565098000,-151.0,0.00032877,7]
[425193564,1781565098000,-443.698553,0.00032877,7]
[425193568,1781565098000,-998.703303,0.00032877,7]
[425193570,1781565098000,-1288.896307,0.00032877,7]
[425193569,1781565098000,-237.850279,0.00032877,7]
[425193566,1781565098000,-151.0,0.00032877,7]
[425193567,1781565098000,-151.0,0.00032877,7]
[425193574,1781565098000,-151.0,0.00032877,7]
[425193565,1781565098000,-553.114047,0.00032877,7]
[425193571,1781565098000,-443.698553,0.00032877,7]
[425193573,1781565098000,-151.0,0.00032877,7]
[425193572,1781565098000,-553.114047,0.00032877,7]
[425193560,1781565098000,-163.413883,0.00032877,7]
[425193576,1781565098000,-1288.896307,0.00032877,7]
[425193579,1781565098000,-237.850279,0.00032877,7]
[425193582,1781565098000,-553.114047,0.00032877,7]